bitfinex/quotes_SOLUSD_20250619
["timestamp","ask_amount","ask_price","bid_price","bid_amount"]
[1750364503727,34.84607023,146.1,146.08,6.84556407]
[1750364503940,29.725745,146.1,146.08,6.84556407]
[1750364504146,34.84607023,146.1,146.08,6.84556407]
[1750364504325,29.725745,146.1,146.08,6.84556407]
[1750364504531,2.56110796,146.09,146.08,6.84556407]
[1750364504734,13.63720437,146.09,146.06,6.84650143]
[1750364505139,18.64964886,146.07,146.06,6.84650143]
[1750364505672,18.64964886,146.08,146.06,6.84650143]
[1750364511668,18.64964886,146.1,146.07,11.07609614]
[1750364511837,2.56160123,146.09,146.07,11.07609614]
[1750364512864,2.56160123,146.09,146.06,35.03885116]
[1750364513272,2.56141553,146.09,146.06,35.03885116]
[1750364514656,18.64964886,146.08,146.06,35.03885116]
[1750364515168,16.19842201,146.1,146.06,35.03885116]
[1750364515369,18.64964886,146.08,146.06,35.03885116]
[1750364515746,16.19842201,146.1,146.06,35.03885116]
[1750364515956,18.64964886,146.08,146.06,35.03885116]
[1750364516265,29.725745,146.1,146.06,35.03885116]
[1750364516468,18.64964886,146.08,146.06,35.03885116]
[1750364516847,16.19842201,146.1,146.06,35.03885116]
[1750364517046,18.75919786,146.1,146.06,35.03885116]
[1750364518742,26.0,146.07,146.06,6.84650143]
[1750364519052,18.64964886,146.06,146.05,6.84677733]
[1750364519263,29.725745,146.06,146.05,6.84677733]
[1750364519549,18.64964886,146.06,146.05,6.84677733]
[1750364521873,29.725745,146.06,146.05,6.84677733]
[1750364525859,18.64964886,146.06,146.05,6.84677733]
[1750364526878,29.725745,146.06,146.05,6.84677733]
[1750364528483,29.725745,146.06,146.05,94.54677733]
[1750364529187,32.28852678,146.06,146.05,94.54677733]
[1750364529758,32.28856499,146.06,146.05,94.54677733]
[1750364529959,29.725745,146.06,146.05,94.54677733]
[1750364531991,18.64964886,146.06,146.05,94.54677733]
[1750364533592,1.5071,146.11,146.05,150.580299]
[1750364533903,18.64964886,146.09,146.08,11.07609614]
[1750364534112,18.64964886,146.11,146.08,38.91609614]
[1750364534301,18.64964886,146.09,146.08,38.91609614]
[1750364535103,18.64964886,146.1,146.08,38.91609614]
[1750364535304,23.77556347,146.1,146.08,38.91609614]
[1750364535512,18.64964886,146.1,146.09,6.84509548]
[1750364535677,26.33826485,146.1,146.09,6.84509548]
[1750364535873,21.21235024,146.1,146.09,6.84509548]
[1750364536291,18.64964886,146.1,146.09,17.92119162]
[1750364536600,18.64964886,146.15,146.09,46.11002648]
[1750364536808,7.6850444,146.14,146.1,27.84]
[1750364536996,18.64964886,146.12,146.1,27.84]
[1750364537304,5.12332433,146.14,146.1,27.84]
[1750364537485,18.64964886,146.14,146.11,23.95455478]
[1750364537687,18.64964886,146.14,146.12,27.84]
[1750364538082,18.64964886,146.14,146.13,11.07609614]
[1750364538293,21.21111854,146.14,146.13,11.07609614]
[1750364538680,18.64964886,146.14,146.13,11.07609614]
[1750364538883,18.64964886,146.17,146.13,11.07609614]
[1750364539183,18.64964886,146.16,146.15,11.07609614]
[1750364539592,18.64964886,146.16,146.15,17.91838146]
[1750364541800,18.64964886,146.16,146.15,105.61838146]
[1750364544305,1.5261,146.22,146.15,122.72409476]
[1750364544604,18.64964886,146.21,146.19,11.07609614]
[1750364544807,18.64964886,146.22,146.2,6.83994528]
[1750364546897,18.64964886,146.22,146.2,17.91604142]
[1750364547586,18.64964886,146.22,146.2,6.83994528]
[1750364549089,18.64964886,146.22,146.2,94.53994528]
[1750364549992,11.07609614,146.21,146.2,94.53994528]
[1750364550316,11.07609614,146.21,146.2,87.7]
[1750364551101,18.64964886,146.17,146.14,6.84275352]
[1750364551313,18.64964886,146.14,146.12,100.46349458]
[1750364551651,29.725745,146.13,146.12,6.84349458]
[1750364551789,29.725745,146.13,146.1,17.11145161]
[1750364551790,18.64964886,146.12,146.1,34.66462696]
[1750364552206,11.07609614,146.13,146.1,34.66462696]
[1750364553890,11.07609614,146.13,146.1,6.84462696]
[1750364554097,11.07609614,146.13,146.1,34.66462696]
[1750364554291,11.07609614,146.13,146.1,51.77619437]
[1750364556225,11.07609614,146.13,146.1,23.95619437]
[1750364556426,11.07609614,146.13,146.1,51.77619437]
[1750364557006,11.07609614,146.13,146.1,23.95619437]
[1750364557320,29.725745,146.11,146.1,6.84462696]
[1750364557628,44.64964886,146.1,146.07,12.74586879]
[1750364557825,55.725745,146.08,146.07,6.84586879]
[1750364558007,44.64964886,146.08,146.07,6.84586879]
[1750364559729,18.64964886,146.07,146.06,6.84650143]
[1750364560106,29.725745,146.07,146.06,6.84650143]
[1750364561735,29.725745,146.07,146.04,6.84743905]
[1750364561931,18.64964886,146.07,146.04,6.84743905]
[1750364562137,11.07609614,146.06,146.04,6.84743905]
[1750364563936,11.07609614,146.06,146.04,94.54743905]
[1750364564336,29.725745,146.07,146.04,94.54743905]
[1750364569335,11.07609614,146.05,146.04,6.84743905]
[1750364569537,11.07609614,146.05,146.03,94.54779168]
[1750364570930,29.725745,146.04,146.03,94.54779168]
[1750364572064,29.725745,146.04,146.03,87.7]
[1750364572846,18.64964886,146.03,146.02,5.92]
[1750364573058,18.64964886,146.03,145.99,115.52]
[1750364573059,29.725745,146.03,145.99,115.52]
[1750364573239,11.07609614,146.03,146.0,6.84931506]
[1750364574353,11.07609614,146.02,146.0,94.54931506]
[1750364574643,18.64964886,146.01,146.0,94.54931506]
[1750364575021,18.64964886,146.01,146.0,87.7]
[1750364575435,18.64964886,146.01,146.0,94.54931506]
[1750364576018,11.07609614,146.01,146.0,94.54931506]
[1750364576548,44.64964886,146.01,146.0,94.54931506]
[1750364576751,55.725745,146.01,146.0,94.54931506]
[1750364577245,55.725745,146.01,146.0,87.7]
[1750364577451,55.725745,146.01,146.0,94.54931506]
[1750364580862,55.725745,146.01,146.0,87.7]
[1750364581355,44.64964886,145.98,145.97,87.7]
[1750364581556,55.725745,145.98,145.97,94.55054493]
[1750364585734,18.64964886,145.97,145.96,6.85101952]
[1750364585958,29.725745,145.97,145.96,6.85101952]
[1750364587153,29.725745,145.97,145.95,94.5515164]
[1750364587359,29.725745,145.96,145.95,6.8515164]
[1750364587737,18.64964886,145.95,145.94,6.85213101]
[1750364587937,11.07609614,145.96,145.94,6.85213101]
[1750364588164,55.725745,145.95,145.94,6.85213101]
[1750364588363,18.64964886,145.94,145.92,12.77291766]
[1750364588534,55.725745,145.95,145.9,27.84]
[1750364588535,18.64964886,145.92,145.9,27.84]
[1750364588862,29.725745,145.92,145.9,94.55400959]
[1750364589079,18.64964886,145.9,145.87,93.62]
[1750364589233,18.64964886,145.88,145.87,128.3154192]
[1750364589433,18.64964886,145.88,145.87,100.4754192]
[1750364589671,11.07609614,145.9,145.87,117.61396722]
[1750364589840,29.725745,145.91,145.87,117.61396722]
[1750364590039,11.07609614,145.9,145.87,100.4754192]
[1750364591649,11.07609614,145.9,145.87,117.61396722]
[1750364592659,11.07609614,145.9,145.87,145.45396722]
[1750364593361,11.07609614,145.9,145.87,117.61396722]
[1750364594763,11.07609614,145.9,145.87,111.69396722]
[1750364595147,11.07609614,145.9,145.87,94.5554192]
[1750364595763,55.725745,145.88,145.86,87.7]
[1750364595966,29.725745,145.87,145.86,87.7]
[1750364596161,29.725745,145.87,145.84,87.7]
[1750364596547,18.64964886,145.85,145.84,94.5568294]
[1750364597355,18.64964886,145.87,145.84,94.5568294]
[1750364597680,29.725745,145.87,145.84,94.5568294]
[1750364597849,29.725745,145.87,145.84,122.4168294]
[1750364599875,29.725745,145.85,145.83,6.85716194]
[1750364600057,44.64964886,145.84,145.83,6.85716194]
[1750364601174,18.64964886,145.84,145.83,6.85716194]
[1750364601378,18.64964886,145.84,145.83,17.93325808]
[1750364602882,18.64964886,145.84,145.83,6.85716194]
[1750364604175,18.64964886,145.84,145.82,6.85776985]
[1750364604379,18.64964886,145.84,145.82,34.71776985]
[1750364604886,18.64964886,145.83,145.82,34.71776985]
[1750364605090,29.725745,145.83,145.82,6.85776985]
[1750364605767,29.725745,145.83,145.81,6.85809423]
[1750364605969,18.64964886,145.81,145.8,23.13371602]
[1750364609790,1.5954,145.89,145.8,79.21658856]
[1750364609969,29.725745,145.88,145.84,11.07609614]
[1750364610691,55.725745,145.88,145.84,11.07609614]
[1750364611076,55.725745,145.88,145.83,27.86]
[1750364611278,29.725745,145.88,145.84,11.07609614]
[1750364611586,26.0,145.86,145.85,6.85635927]
[1750364612176,44.64964886,145.86,145.85,6.85635927]
[1750364613581,18.64964886,145.85,145.84,6.8568294]
[1750364614388,18.64964886,145.85,145.84,17.93292554]
[1750364615891,18.64964886,145.85,145.84,6.8568294]
[1750364616196,18.64964886,145.85,145.84,17.93292554]
[1750364617114,18.64964886,145.85,145.84,105.63292554]
[1750364619875,18.64964886,145.85,145.84,94.5568294]
[1750364620995,18.64964886,145.85,145.84,105.63292554]
[1750364621202,18.64964886,145.85,145.84,122.4168294]
[1750364621413,18.64964886,145.85,145.84,133.49292554]
[1750364621610,10.77933736,145.89,145.84,133.49292554]
[1750364621611,18.64964886,145.88,145.84,150.63499904]
[1750364621779,18.64964886,145.88,145.87,11.07609614]
[1750364621979,18.64964886,145.88,145.87,98.77609614]
[1750364622781,18.64964886,145.88,145.87,87.7]
[1750364623092,18.64964886,145.88,145.87,98.77609614]
[1750364623802,18.64964886,145.88,145.87,105.63151534]
[1750364628212,18.64964886,145.88,145.87,87.7]
[1750364628710,18.64964886,145.84,145.83,27.86]
[1750364629903,18.64964886,145.88,145.86,11.07609614]
[1750364630103,18.64964886,145.88,145.87,11.07609614]
[1750364630316,18.64964886,145.88,145.87,17.93151534]
[1750364630501,18.64964886,145.88,145.87,6.8554192]
[1750364630822,18.64964886,145.88,145.87,17.93151534]
[1750364634605,26.0,145.91,145.89,58.27101378]
[1750364634910,26.0,145.92,145.89,86.13101378]
[1750364635112,26.0,145.92,145.9,11.07609614]
[1750364635299,26.0,145.92,145.9,38.93609614]
[1750364636106,26.0,145.92,145.91,6.85353985]
[1750364636514,44.64964886,145.92,145.91,6.85353985]
[1750364636698,44.64964886,145.92,145.91,17.92963599]
[1750364640422,44.64964886,145.92,145.91,6.85353985]
[1750364640626,44.64964886,145.92,145.91,17.92963599]
[1750364640817,44.64964886,145.92,145.91,76.20064977]
[1750364642122,44.64964886,145.92,145.91,58.27101378]
[1750364642326,55.725745,145.92,145.91,58.27101378]
[1750364646230,44.64964886,145.92,145.91,58.27101378]
[1750364646800,55.725745,145.92,145.91,58.27101378]
[1750364649936,18.64964886,145.91,145.87,6.85517342]
[1750364650111,29.725745,145.91,145.87,17.93126956]
[1750364650315,18.64964886,145.9,145.87,17.93126956]
[1750364650510,18.64964886,145.9,145.87,45.79126956]
[1750364655228,34.84510849,145.91,145.87,45.79126956]
[1750364655430,18.64964886,145.9,145.87,45.79126956]
[1750364655633,18.64964886,145.9,145.87,104.06228334]
[1750364656137,18.64964886,145.89,145.87,92.9861872]
[1750364656517,11.07609614,145.9,145.87,65.1261872]
[1750364657225,44.64964886,145.88,145.87,58.27101378]
[1750364657438,55.725745,145.88,145.87,65.12643298]
[1750364657626,44.64964886,145.88,145.87,65.12643298]
[1750364661139,49.77279683,145.88,145.87,65.12643298]
[1750364661440,49.77279683,145.88,145.87,58.27101378]
[1750364662340,44.64964886,145.88,145.87,58.27101378]
[1750364663613,44.64964886,145.88,145.87,65.12643298]
[1750364664124,44.64964886,145.88,145.87,58.27101378]
[1750364664437,18.64964886,145.87,145.85,58.27101378]
[1750364664645,29.725745,145.86,145.85,58.27101378]
[1750364668137,18.64964886,145.86,145.85,58.27101378]
[1750364669343,29.725745,145.86,145.85,58.27101378]
[1750364670327,18.64964886,145.85,145.83,65.12811132]
[1750364670720,11.07609614,145.86,145.83,65.12811132]
[1750364674737,18.64964886,145.85,145.83,65.12811132]
[1750364675243,11.07609614,145.85,145.83,58.27101378]
[1750364675642,11.07609614,145.85,145.83,65.12831118]
[1750364676648,11.07609614,145.85,145.83,58.27101378]
[1750364678738,11.07609614,145.85,145.82,6.85761353]
[1750364678739,11.07609614,145.85,145.82,65.12862731]
[1750364679268,18.64964886,145.83,145.82,65.12862731]
[1750364682155,18.64964886,145.83,145.82,58.27101378]
[1750364683541,18.64964886,145.83,145.82,65.12878363]
[1750364686354,29.725745,145.85,145.82,65.12878363]
[1750364687539,18.64964886,145.83,145.82,65.12878363]
[1750364689152,18.64964886,145.83,145.82,58.27101378]
[1750364689356,5.69291839,145.83,145.82,58.27101378]
[1750364689731,18.64964886,145.83,145.82,58.27101378]
[1750364690666,5.69291839,145.83,145.82,58.27101378]
[1750364694758,5.69291839,145.83,145.81,58.27101378]
[1750364695627,5.69291839,145.83,145.81,65.12917259]
[1750364696861,18.64964886,145.83,145.81,65.12917259]
[1750364697980,5.69291839,145.83,145.81,65.12917259]
[1750364698344,5.69291839,145.83,145.81,58.27101378]
[1750364698636,18.64964886,145.81,145.8,58.27101378]
[1750364698861,47.11424081,145.81,145.73,5.69291839]
[1750364699074,5.69291839,145.78,145.74,27.86]
[1750364699288,5.69291839,145.78,145.74,86.13101378]
[1750364699843,5.69291839,145.78,145.74,110.14616005]
[1750364700270,18.64964886,145.79,145.74,58.27101378]
[1750364700271,5.69291839,145.75,145.74,58.27101378]
[1750364700583,18.64964886,145.77,145.73,40.41459902]
[1750364700751,18.64964886,145.77,145.74,5.69291839]
[1750364700952,18.64964886,145.77,145.74,8.90301381]
[1750364701136,18.64964886,145.77,145.73,60.77970713]
[1750364701895,5.33734151,145.8,145.73,60.77970713]
[1750364701896,8.90301381,145.79,145.75,8.90301381]
[1750364702037,27.55266267,145.79,145.75,27.86]
[1750364702363,8.90301381,145.78,145.75,27.86]
[1750364702568,18.64964886,145.77,145.75,27.86]
[1750364702767,8.90301381,145.77,145.74,27.86]
[1750364703439,8.90301381,145.78,145.74,36.76301381]
[1750364703638,8.90301381,145.79,145.74,36.76301381]
[1750364703858,23.99245934,145.8,145.74,36.76301381]
[1750364703859,18.64964886,145.77,145.75,6.86106346]
[1750364704064,18.64964886,145.77,145.75,34.72106346]
[1750364705855,18.64964886,145.78,145.75,34.72106346]
[1750364706245,27.55266267,145.79,145.75,34.72106346]
[1750364706448,18.64964886,145.78,145.75,34.72106346]
[1750364706654,18.64964886,145.75,145.73,58.27101378]
[1750364706857,18.64964886,145.73,145.69,59.89661378]
[1750364707051,18.64964886,145.76,145.7,6.86341798]
[1750364707343,18.64964886,145.76,145.7,58.27101378]
[1750364707344,18.64964886,145.71,145.7,58.27101378]
[1750364707558,27.55266267,145.71,145.69,58.27101378]
[1750364707760,8.90301381,145.7,145.67,5.9]
[1750364707960,8.90301381,145.69,145.66,6.86518543]
[1750364708266,8.90301381,145.67,145.65,6.86568748]
[1750364708569,18.64964886,145.68,145.65,15.76870129]
[1750364708866,18.64964886,145.69,145.66,8.90301381]
[1750364709055,18.64964886,145.69,145.65,24.03012277]
[1750364709056,18.64964886,145.69,145.65,32.93313658]
[1750364709247,8.90301381,145.69,145.65,6.86568748]
[1750364710342,8.90301381,145.68,145.65,6.86568748]
[1750364711268,8.90301381,145.66,145.63,6.86671702]
[1750364711444,8.90301381,145.67,145.63,6.86671702]
[1750364711843,18.64964886,145.66,145.63,6.86671702]
[1750364712163,18.64964886,145.64,145.63,6.86671702]
[1750364712676,8.90301381,145.66,145.63,6.86671702]
[1750364714164,18.64964886,145.68,145.63,24.03350957]
[1750364714468,27.55266267,145.68,145.64,8.90301381]
[1750364714669,27.55266267,145.68,145.63,91.20753716]
[1750364714841,8.90301381,145.67,145.63,91.20753716]
[1750364716548,27.55266267,145.68,145.64,8.90301381]
[1750364716748,27.55266267,145.68,145.63,82.30452335]
[1750364717048,27.55266267,145.68,145.63,91.20753716]
[1750364717049,8.90301381,145.67,145.63,91.20753716]
[1750364718463,8.90301381,145.66,145.63,65.1377308]
[1750364718776,18.64964886,145.63,145.62,71.03811232]
[1750364718952,27.55266267,145.63,145.62,5.9]
[1750364719149,27.55266267,145.63,145.61,6.86747639]
[1750364719757,27.55266267,145.63,145.6,65.13897196]
[1750364720798,18.64964886,145.61,145.6,6.86795818]
[1750364721109,8.90301381,145.61,145.59,65.13945067]
[1750364721266,44.64964886,145.63,145.58,6.86899421]
[1750364721593,18.64964886,145.64,145.61,8.90301381]
[1750364721764,18.64964886,145.64,145.61,58.27101378]
[1750364721971,8.90301381,145.64,145.61,58.27101378]
[1750364722601,8.90301381,145.64,145.62,6.86718857]
[1750364723099,27.55266267,145.65,145.62,6.86718857]
[1750364723981,8.90301381,145.64,145.61,65.13855429]
[1750364724584,18.64964886,145.62,145.61,65.13855429]
[1750364724783,18.64964886,145.65,145.61,74.0415681]
[1750364724998,18.64964886,145.65,145.61,82.30770476]
[1750364725173,18.64964886,145.65,145.62,8.90301381]
[1750364726922,27.55266267,145.65,145.61,82.30770476]
[1750364727201,27.55266267,145.65,145.61,91.21071857]
[1750364728400,27.55266267,145.65,145.61,65.13855429]
[1750364728699,27.55266267,145.65,145.61,74.0415681]
[1750364728878,8.90301381,145.64,145.61,65.13855429]
[1750364729988,27.55266267,145.65,145.61,74.0415681]
[1750364730677,27.55266267,145.65,145.61,65.13855429]
[1750364731494,18.64964886,145.65,145.61,74.0415681]
[1750364731690,27.55266267,145.65,145.61,74.0415681]
[1750364731889,1.658,145.68,145.64,8.90301381]
[1750364732097,18.64964886,145.67,145.64,8.90301381]
[1750364734006,18.64964886,145.67,145.65,6.86577411]
[1750364736412,18.64964886,145.67,145.64,65.13706784]
[1750364736413,27.55266267,145.67,145.64,65.13706784]
[1750364736608,8.90301381,145.66,145.64,65.13706784]
[1750364737014,18.64964886,145.65,145.64,6.86605406]
[1750364737596,18.64964886,145.65,145.63,6.86671702]
[1750364737799,27.55266267,145.67,145.63,15.76973083]
[1750364737998,18.64964886,145.67,145.63,15.76973083]
[1750364738593,18.64964886,145.67,145.63,15.55101768]
[1750364739416,27.55266267,145.67,145.63,15.55101768]
[1750364742124,18.64964886,145.67,145.63,15.55101768]
[1750364743054,18.64964886,145.67,145.63,6.64800387]
[1750364743239,18.64964886,145.67,145.63,15.55101768]
[1750364743423,18.64964886,145.67,145.63,6.64800387]
[1750364743728,18.64964886,145.67,145.63,15.55101768]
[1750364745533,27.55266267,145.67,145.63,15.55101768]
[1750364747143,27.55266267,145.67,145.63,73.82203146]
[1750364749236,18.64964886,145.67,145.63,73.82203146]
[1750364750668,18.64964886,145.67,145.64,8.90301381]
[1750364751325,23.77925011,145.67,145.64,8.90301381]
[1750364751642,32.68226392,145.67,145.63,73.82203146]
[1750364751837,32.68226392,145.67,145.63,64.91901765]
[1750364751838,8.90301381,145.65,145.63,64.91901765]
[1750364752042,18.64964886,145.64,145.63,64.91901765]
[1750364756147,18.64964886,145.64,145.63,6.64800387]
[1750364756347,18.64964886,145.64,145.61,75.44006193]
[1750364756348,18.64964886,145.64,145.62,6.86695822]
[1750364756756,18.64964886,145.63,145.59,58.27101378]
[1750364757056,18.64964886,145.63,145.62,8.90301381]
[1750364757258,18.64964886,145.63,145.61,8.90301381]
[1750364757466,26.0,145.65,145.59,110.19099748]
[1750364757467,18.64964886,145.64,145.6,8.90301381]
[1750364757650,18.64964886,145.64,145.59,119.09401129]
[1750364757651,32.69145278,145.64,145.59,119.09401129]
[1750364757829,27.55266267,145.64,145.59,119.09401129]
[1750364758230,32.69142809,145.64,145.59,119.09401129]
[1750364759560,8.90301381,145.63,145.59,82.31099748]
[1750364759860,8.90301381,145.63,145.59,65.13948845]
[1750364760267,18.64964886,145.61,145.59,65.13948845]
[1750364760567,18.64964886,145.61,145.58,36.78301381]
[1750364760568,8.90301381,145.6,145.58,58.27101378]
[1750364760858,27.55266267,145.59,145.57,6.86931648]
[1750364761367,18.64964886,145.57,145.55,58.27101378]
[1750364761545,8.90301381,145.57,145.54,12.7909633]
[1750364762837,18.64964886,145.56,145.54,6.8709633]
[1750364763033,27.55266267,145.55,145.54,58.27101378]
[1750364764366,27.55266267,145.55,145.52,6.87190764]
[1750364764367,18.64964886,145.58,145.55,24.04671934]
[1750364764532,26.0,145.6,145.56,8.90301381]
[1750364764736,18.64964886,145.59,145.57,8.90301381]
[1750364765149,18.64964886,145.59,145.55,51.94671934]
[1750364765352,18.64964886,145.59,145.57,8.90301381]
[1750364766266,18.64964886,145.59,145.58,6.86907542]
[1750364768369,18.64964886,145.59,145.56,6.87001923]
[1750364768958,18.64964886,145.59,145.56,15.77303304]
[1750364770077,18.64964886,145.59,145.57,8.90301381]
[1750364770277,18.64964886,145.62,145.59,6.86860361]
[1750364770478,18.64964886,145.62,145.59,94.56860361]
[1750364770682,27.55266267,145.62,145.59,94.56860361]
[1750364771595,18.64964886,145.6,145.59,87.7]
[1750364772092,8.90301381,145.6,145.59,87.7]
[1750364773377,13.59498395,145.6,145.59,87.7]
[1750364773685,13.59498395,145.6,145.54,24.04826709]
[1750364773891,8.90301381,145.59,145.55,8.90301381]
[1750364774065,13.59366299,145.6,145.56,8.90301381]
[1750364774777,8.90301381,145.6,145.57,6.86954729]
[1750364775098,18.64964886,145.58,145.55,15.77350505]
[1750364775273,8.90301381,145.58,145.55,6.87049124]
[1750364775878,18.64964886,145.57,145.55,6.87049124]
[1750364776161,8.90301381,145.58,145.55,6.87049124]
[1750364776359,27.55266267,145.59,145.55,6.87049124]
[1750364777158,18.64964886,145.57,145.55,6.87049124]
[1750364777781,18.64964886,145.56,145.55,6.87049124]
[1750364779264,18.64964886,145.56,145.54,6.87080192]
[1750364779665,18.64964886,145.58,145.54,94.57080192]
[1750364779863,18.64964886,145.56,145.54,94.57080192]
[1750364780290,27.55266267,145.56,145.54,94.57080192]
[1750364781484,18.64964886,145.56,145.54,94.57080192]
[1750364784396,18.64964886,145.58,145.54,94.57080192]
[1750364784601,18.64964886,145.56,145.54,94.57080192]
[1750364787509,18.64964886,145.58,145.55,8.90301381]
[1750364787694,18.64964886,145.58,145.54,111.74821019]
[1750364787893,8.90301381,145.58,145.54,120.651224]
[1750364788204,18.64964886,145.57,145.54,120.651224]
[1750364788504,18.64964886,145.57,145.55,8.90301381]
[1750364788713,8.90301381,145.58,145.54,120.651224]
[1750364788878,18.64964886,145.57,145.54,111.74821019]
[1750364789217,18.64964886,145.57,145.54,120.651224]
[1750364790112,18.64964886,145.58,145.55,8.90301381]
[1750364790600,18.64964886,145.58,145.56,6.87001923]
[1750364791628,18.64964886,145.58,145.56,94.57001923]
[1750364793211,8.90301381,145.58,145.56,94.57001923]
[1750364793392,27.55266267,145.57,145.55,6.87036277]
[1750364794011,18.64964886,145.55,145.54,94.57082102]
[1750364795407,27.55266267,145.57,145.54,94.57082102]
[1750364796713,18.64964886,145.57,145.54,103.47383483]
[1750364797287,18.64964886,145.57,145.54,94.57082102]
[1750364799312,27.55266267,145.57,145.54,94.57082102]
[1750364800706,4.70794583,145.56,145.54,94.57082102]
[1750364801619,18.64964886,145.57,145.54,94.57082102]
[1750364803033,4.71495012,145.56,145.54,94.57082102]
[1750364803209,18.64964886,145.57,145.54,94.57082102]
[1750364803532,27.55266267,145.57,145.54,94.57082102]
[1750364807335,8.90301381,145.56,145.54,94.57082102]
[1750364808112,18.64964886,145.57,145.54,94.57082102]
[1750364808338,8.90301381,145.56,145.54,94.57082102]
[1750364809520,27.55266267,145.57,145.54,94.57082102]
[1750364816360,32.6802732,145.57,145.54,94.57082102]
[1750364816542,27.55266267,145.57,145.54,94.57082102]
[1750364816742,18.64964886,145.57,145.54,94.57082102]
[1750364816943,15.30661293,145.64,145.56,8.90301381]
[1750364817142,15.03994139,145.66,145.62,8.90301381]
[1750364817143,5.14655255,145.63,145.62,8.90301381]
[1750364817346,5.14655255,145.64,145.62,8.90301381]
[1750364817644,18.64964886,145.65,145.62,8.90301381]
[1750364817847,5.14655255,145.65,145.62,8.90301381]
[1750364818035,8.90301381,145.64,145.61,115.6]
[1750364818240,18.64964886,145.63,145.6,36.80301381]
[1750364818458,18.64964886,145.63,145.61,6.86766018]
[1750364818834,27.55266267,145.63,145.61,6.86766018]
[1750364819035,8.90301381,145.63,145.61,6.86766018]
[1750364820158,8.90301381,145.63,145.6,6.86792484]
[1750364820362,8.90301381,145.61,145.57,24.04336433]
[1750364820536,23.79620141,145.63,145.57,51.94336433]
[1750364820737,18.64964886,145.59,145.57,34.76954729]
[1750364820962,27.55266267,145.59,145.57,6.86954729]
[1750364821142,18.64964886,145.59,145.57,6.86954729]
[1750364821345,27.55266267,145.59,145.57,6.86954729]
[1750364822567,18.64964886,145.59,145.57,6.86954729]
[1750364823650,27.55266267,145.6,145.57,6.86954729]
[1750364826961,27.55266267,145.6,145.57,94.56954729]
[1750364830253,5.13627301,145.61,145.58,8.90301381]
[1750364830455,23.78592187,145.64,145.6,8.90301381]
[1750364830769,18.64964886,145.64,145.62,6.86718857]
[1750364832678,18.64964886,145.64,145.61,15.77056567]
[1750364832887,27.55266267,145.64,145.61,6.86755186]
[1750364834573,8.90301381,145.63,145.61,6.86755186]
[1750364835882,18.64964886,145.64,145.61,94.56755186]
[1750364836188,8.90301381,145.63,145.61,94.56755186]
[1750364836756,27.55266267,145.64,145.61,94.56755186]
[1750364838575,18.64964886,145.64,145.62,8.90301381]
[1750364838773,18.64964886,145.65,145.62,8.90301381]
[1750364839072,27.55266267,145.65,145.61,120.63971614]
[1750364839669,18.64964886,145.65,145.62,8.90301381]
[1750364840499,27.55266267,145.67,145.63,8.90301381]
[1750364840798,18.64964886,145.67,145.64,8.90301381]
[1750364841169,27.55266267,145.67,145.63,87.7]
[1750364841400,27.55266267,145.67,145.64,6.86624553]
[1750364841894,18.64964886,145.67,145.64,6.86624553]
[1750364842082,18.64964886,145.67,145.65,8.90301381]
[1750364842996,18.64964886,145.68,145.66,8.90301381]
[1750364843196,8.90301381,145.7,145.66,96.60301381]
[1750364843197,18.64964886,145.69,145.66,96.60301381]
[1750364843496,18.64964886,145.7,145.67,15.76784527]
[1750364843670,27.55266267,145.7,145.67,6.86483146]
[1750364843870,8.90301381,145.7,145.67,6.86483146]
[1750364846306,8.90301381,145.71,145.67,103.46784527]
[1750364847110,27.55266267,145.73,145.69,8.90301381]
[1750364847287,27.55266267,145.73,145.7,6.86341798]
[1750364847483,18.64964886,145.73,145.7,103.46643179]
[1750364848408,27.55266267,145.73,145.7,94.56341798]
[1750364848813,8.90301381,145.72,145.7,94.56341798]
[1750364850122,27.55266267,145.71,145.7,87.7]
[1750364850582,27.55266267,145.71,145.68,87.7]
[1750364850778,27.55266267,145.7,145.69,6.86384582]
[1750364851006,18.64964886,145.7,145.69,6.86384582]
[1750364851313,8.90301381,145.71,145.69,6.86384582]
[1750364852711,18.64964886,145.73,145.69,6.86384582]
[1750364852889,8.90301381,145.72,145.69,94.56384582]
[1750364854217,18.64964886,145.71,145.69,94.56384582]
[1750364855298,18.64964886,145.74,145.69,94.56384582]
[1750364855501,18.64964886,145.71,145.69,94.56384582]
[1750364856619,8.90301381,145.73,145.69,103.46685963]
[1750364856921,18.64964886,145.72,145.69,103.46685963]
[1750364857814,18.64964886,145.72,145.7,8.90301381]
[1750364857993,18.64964886,145.73,145.7,8.90301381]
[1750364858402,27.55266267,145.73,145.71,6.86294694]
[1750364858925,10.19561699,145.75,145.71,6.86294694]
[1750364858926,8.90301381,145.72,145.71,6.86294694]
[1750364859916,8.90301381,145.72,145.7,6.86341798]
[1750364861305,8.90301381,145.73,145.7,6.86341798]
[1750364862615,8.90301381,145.73,145.7,94.56341798]
[1750364863328,27.55266267,145.74,145.7,94.56341798]
[1750364864127,27.55266267,145.74,145.7,103.46643179]